bitfinex/quotes_ETHUSD_20250129
["timestamp","ask_amount","ask_price","bid_price","bid_amount"]
[1738116738370,3.20233,3122.8,3122.6,3.56909549]
[1738116738666,6.40468,3122.8,3122.7,1.36282955]
[1738116739075,6.40468,3122.8,3122.7,1.38199514]
[1738116739435,3.20233,3122.8,3122.7,1.38199514]
[1738116739634,3.20205,3123.0,3122.7,1.38199514]
[1738116740480,0.50105262,3129.7,3122.9,3.668]
[1738116740481,0.7648,3123.9,3122.9,3.668]
[1738116740653,3.20151,3123.6,3123.0,7.68780381]
[1738116740973,3.20151,3123.6,3123.4,0.55]
[1738116741173,3.20134,3123.7,3123.4,0.55]
[1738116741347,3.20134,3123.7,3123.5,0.01971925]
[1738116741556,0.7648,3124.3,3123.7,0.55]
[1738116741557,3.20114,3123.9,3123.7,0.55]
[1738116741755,3.20114,3123.9,3123.8,0.3753]
[1738116742086,3.20092,3124.1,3123.9,0.55]
[1738116742289,3.2007,3124.4,3124.1,0.55]
[1738116742598,3.20081,3124.2,3124.1,0.55]
[1738116742771,3.20092,3124.1,3124.0,3.203]
[1738116743080,3.20092,3124.1,3124.0,3.62763]
[1738116743254,3.20092,3124.1,3124.0,4.17763]
[1738116743453,3.20081,3124.2,3124.0,4.17763]
[1738116743654,3.20092,3124.1,3124.0,4.17763]
[1738116744257,3.20043,3124.6,3124.2,0.668]
[1738116744454,3.20024,3124.8,3124.3,0.55]
[1738116744661,3.20024,3124.8,3124.5,0.55]
[1738116744855,3.20024,3124.8,3124.6,0.3752]
[1738116745055,3.20032,3124.7,3124.6,0.9252]
[1738116747584,3.20032,3124.7,3124.4,3.202]
[1738116747774,3.20051,3124.5,3124.4,3.202]
[1738116748690,3.20092,3124.1,3124.0,3.42463]
[1738116749026,3.20092,3124.1,3124.0,3.45535498]
[1738116749873,3.20092,3124.1,3124.0,1.00535498]
[1738116750082,3.20092,3124.1,3124.0,0.58072498]
[1738116752482,3.20092,3124.1,3124.0,0.03072498]
[1738116752968,3.20092,3124.1,3123.2,0.668]
[1738116752969,3.20152,3123.6,3123.2,0.668]
[1738116753173,3.20152,3123.6,3123.4,3.0]
[1738116753406,3.20152,3123.6,3123.5,0.65408675]
[1738116753711,3.20152,3123.6,3123.5,0.01815411]
[1738116753914,3.97942,3123.6,3123.5,0.01815411]
[1738116754205,3.20186,3123.2,3123.0,0.55]
[1738116754413,3.20186,3123.2,3123.1,0.355]
[1738116754597,3.20186,3123.2,3122.9,3.204]
[1738116754598,3.20194,3123.1,3123.0,0.65261329]
[1738116755619,3.20204,3123.0,3122.9,3.204]
[1738116755787,3.20233,3122.8,3122.5,0.668]
[1738116756107,3.20233,3122.8,3122.6,0.55]
[1738116756316,3.20233,3122.8,3122.7,0.73660648]
[1738116756709,3.20233,3122.8,3122.7,0.74874638]
[1738116757016,3.20207,3123.0,3122.7,0.74874638]
[1738116757186,3.20218,3122.9,3122.7,0.74874638]
[1738116759202,3.20207,3123.0,3122.7,0.74874638]
[1738116759388,3.20215,3122.9,3122.8,0.37487464]
[1738116759589,3.20215,3122.9,3122.8,0.38697012]
[1738116760180,4.03013,3123.1,3122.8,0.38697012]
[1738116760181,3.20203,3123.1,3122.8,0.38697012]
[1738116760724,3.20215,3122.9,3122.8,0.38697012]
[1738116761882,3.20203,3123.1,3122.8,0.38697012]
[1738116762082,3.20215,3122.9,3122.8,0.38697012]
[1738116762722,3.20178,3123.3,3122.8,0.93697012]
[1738116763016,3.20204,3123.1,3122.9,0.16735766]
[1738116763218,3.20204,3123.1,3122.9,0.17940919]
[1738116764927,3.2016,3123.5,3123.0,0.55]
[1738116765135,3.20171,3123.4,3123.0,1.24155927]
[1738116765339,3.20171,3123.4,3123.1,0.01201833]
[1738116766532,3.20171,3123.4,3123.2,0.01962789]
[1738116766888,3.20171,3123.4,3123.3,0.01195389]
[1738116769024,4.03853244,3123.4,3123.3,0.01195389]
[1738116769227,3.20213,3123.0,3122.6,0.668]
[1738116769442,3.20213,3123.0,3122.7,0.55]
[1738116770453,3.20213,3123.0,3122.8,0.01211939]
[1738116770653,3.98955,3122.9,3122.8,0.01211939]
[1738116771447,3.20229,3122.8,3122.6,3.0]
[1738116773023,3.20229,3122.8,3122.5,3.204]
[1738116773224,3.20229,3122.8,3122.7,0.63212331]
[1738116773616,3.24231988,3122.8,3122.5,3.204]
[1738116773801,3.24231988,3122.8,3122.1,0.005]
[1738116773802,3.20277,3122.3,3122.1,0.005]
[1738116774000,3.20277,3122.3,3122.1,3.005]
[1738116774219,3.20277,3122.3,3122.2,1.171]
[1738116774440,3.20277,3122.3,3122.1,3.005]
[1738116774441,3.20286,3122.2,3122.1,3.005]
[1738116774745,3.20286,3122.2,3122.1,4.209809]
[1738116775037,3.98426,3122.4,3122.1,1.209809]
[1738116775416,3.20279,3122.3,3122.1,1.209809]
[1738116775620,3.98426,3122.4,3122.1,1.209809]
[1738116775844,3.20279,3122.3,3122.1,1.6512899]
[1738116776848,3.98426,3122.4,3122.1,1.6512899]
[1738116777346,3.20266,3122.4,3122.1,1.6512899]
[1738116777640,3.20228,3122.8,3122.2,1.218]
[1738116777845,3.20254,3122.6,3122.2,4.423]
[1738116778052,3.20254,3122.6,3122.3,0.55478713]
[1738116778534,6.40462,3122.8,3122.4,0.55]
[1738116778936,3.20238,3122.7,3122.4,0.55]
[1738116779136,3.20251,3122.6,3122.4,0.55]
[1738116779643,3.20237,3122.7,3122.4,0.55]
[1738116779948,0.773,3124.6,3122.9,0.668]
[1738116780152,0.773,3124.6,3122.8,0.55]
[1738116780153,3.20051,3124.5,3123.6,1.218]
[1738116780335,3.20053,3124.5,3123.9,3.75111]
[1738116780510,4.01913,3124.9,3124.1,0.55]
[1738116780711,4.01913,3124.9,3124.3,3.2007]
[1738116780907,0.819,3124.9,3124.2,0.668]
[1738116781144,3.20052,3124.5,3124.2,0.668]
[1738116781448,6.40078,3124.7,3124.3,0.01929546]
[1738116781649,6.40078,3124.7,3124.2,0.668]
[1738116781840,6.40078,3124.7,3124.4,0.01931594]
[1738116782043,6.40078,3124.7,3124.2,0.668]
[1738116782211,6.40078,3124.7,3124.5,0.01933643]
[1738116782410,6.40078,3124.7,3124.2,0.668]
[1738116782616,3.20038,3124.7,3124.6,0.01935692]
[1738116782816,3.20038,3124.7,3124.2,0.668]
[1738116783029,3.20038,3124.7,3124.6,0.01935692]
[1738116783251,3.20038,3124.7,3124.2,0.668]
[1738116783418,3.20041,3124.6,3124.2,0.668]
[1738116784015,4.01911,3124.9,3124.3,0.55]
[1738116784252,0.8007,3125.5,3124.5,0.55]
[1738116784455,3.19945,3125.6,3124.9,0.55]
[1738116784616,3.19945,3125.6,3125.1,0.55]
[1738116785249,3.99991,3125.8,3125.3,0.55]
[1738116785453,3.19921,3125.8,3125.3,0.55]
[1738116785618,3.19899,3126.0,3125.3,0.55]
[1738116785957,3.1991,3125.9,3125.3,0.55]
[1738116786169,3.19899,3126.0,3125.4,3.0]
[1738116786320,3.19876,3126.3,3125.7,0.55]
[1738116786668,3.19876,3126.3,3125.9,0.55]
[1738116787024,3.19848,3126.5,3125.9,0.55]
[1738116787331,3.19862,3126.4,3125.9,0.55]
[1738116787526,3.19862,3126.4,3125.9,3.751]
[1738116787933,3.19887,3126.1,3125.7,3.0]
[1738116788120,3.19887,3126.1,3125.7,0.55]
[1738116788322,3.19868,3126.3,3125.7,0.55]
[1738116788634,3.19868,3126.3,3125.9,0.55]
[1738116790017,3.19849,3126.5,3125.9,3.74907]
[1738116790223,3.19828,3126.7,3126.1,0.55]
[1738116790525,3.19842,3126.6,3126.1,0.55]
[1738116790720,0.7753,3127.0,3126.1,0.55]
[1738116790721,0.03998343,3126.7,3126.1,0.55]
[1738116790961,3.19858,3126.4,3126.1,0.55]
[1738116791170,3.19855,3126.5,3126.1,0.55]
[1738116791860,3.19859,3126.4,3126.1,0.55]
[1738116796832,3.19869,3126.3,3126.1,0.55]
[1738116797058,3.19859,3126.4,3126.1,0.55]
[1738116798471,3.19859,3126.4,3125.7,0.64843061]
[1738116798472,3.19897,3126.0,3125.7,0.64843061]
[1738116798667,0.03998349,3126.3,3125.7,0.64843061]
[1738116798668,3.19884,3126.2,3125.7,0.64843061]
[1738116798970,3.199,3126.0,3125.7,0.64843061]
[1738116802436,3.19884,3126.2,3125.7,0.64843061]
[1738116803067,3.19877,3126.2,3125.7,0.64843061]
[1738116803272,3.19913,3125.9,3125.7,0.64843061]
[1738116804783,3.19908,3125.9,3125.7,0.64843061]
[1738116804945,3.518988,3125.9,3125.6,3.201]
[1738116805278,3.19928,3125.7,3125.6,3.201]
[1738116805456,3.19969,3125.3,3125.2,0.64936643]
[1738116805655,3.2001,3124.9,3124.6,3.202]
[1738116805857,3.2001,3124.9,3124.7,3.0]
[1738116806056,3.19994,3125.1,3124.7,3.0]
[1738116806273,3.19994,3125.1,3124.8,0.55]
[1738116806573,3.19971,3125.3,3124.8,3.55967541]
[1738116807878,3.19971,3125.3,3124.9,0.55]
[1738116808174,3.19984,3125.2,3124.9,0.55]
[1738116810079,3.19984,3125.2,3124.8,0.55]
[1738116810481,6.39972,3125.2,3124.8,0.55]
[1738116810649,3.19984,3125.2,3124.8,1.54759039]
[1738116811841,3.19984,3125.2,3124.8,0.55]
[1738116812043,3.20002,3125.0,3124.8,0.55]
[1738116812350,3.20002,3125.0,3124.9,1.20514866]
[1738116814784,3.20002,3125.0,3124.9,0.65514866]
[1738116814999,3.20002,3125.0,3124.6,3.202]
[1738116815295,3.20016,3124.9,3124.6,3.202]
[1738116815593,3.19924,3125.8,3124.6,3.202]
[1738116815594,3.19987,3125.2,3124.8,0.65284293]
[1738116816678,3.1999,3125.1,3124.8,0.65284293]
[1738116816993,3.2,3125.0,3124.8,0.65284293]
[1738116820080,3.2,3125.0,3124.8,1.20284293]
[1738116820785,3.24010149,3124.9,3124.8,0.65284293]
[1738116821107,3.2003,3124.7,3124.6,3.202]
[1738116824609,3.2003,3124.7,3124.6,3.21375045]
[1738116824780,3.2003,3124.7,3124.6,3.23197754]
[1738116826098,3.2003,3124.7,3124.6,0.02997754]
[1738116826099,4.61504,3124.7,3124.6,0.02997754]
[1738116826619,4.61504,3124.7,3123.6,0.939]
[1738116826620,3.20108,3124.0,3123.6,0.939]
[1738116826806,3.20108,3124.0,3123.7,3.203]
[1738116827181,3.20122,3123.8,3123.7,6.203]
[1738116827380,3.20108,3124.0,3123.7,6.203]
[1738116827576,3.20108,3124.0,3123.7,7.537185]
[1738116828035,3.20122,3123.8,3123.7,7.537185]
[1738116828917,3.20122,3123.8,3123.7,8.087185]
[1738116829211,3.20122,3123.8,3123.7,4.400085]
[1738116829416,3.20108,3124.0,3123.7,3.850085]
[1738116829640,3.20113,3123.9,3123.8,0.55]
[1738116830625,3.20113,3123.9,3123.7,3.850085]
[1738116830626,3.20122,3123.8,3123.7,3.850085]
[1738116830831,3.20122,3123.8,3123.7,3.203]
[1738116831147,3.24123678,3123.8,3123.7,3.203]
[1738116831519,0.8155,3124.6,3123.8,0.55]
[1738116831743,3.20098,3124.1,3123.7,1.218]
[1738116831942,3.20098,3124.1,3123.9,0.55]
[1738116832249,3.20102,3124.0,3123.9,0.55]
[1738116832452,3.20112,3123.9,3123.8,3.753]
[1738116833378,3.20143,3123.6,3123.5,0.65554028]
[1738116835340,3.20123,3123.8,3123.6,0.55]
[1738116835540,3.20123,3123.8,3123.6,1.29085403]
[1738116836221,3.20153,3123.5,3123.4,6.203]
[1738116836427,3.20153,3123.5,3123.4,3.203]
[1738116836727,3.20163,3123.4,3123.3,3.086]
[1738116837668,3.20163,3123.4,3123.3,2.536]
[1738116837961,3.20163,3123.4,3123.3,3.17712872]
[1738116838783,3.20151,3123.6,3123.3,3.17712872]
[1738116839382,3.20124,3123.8,3123.4,3.753]
[1738116839733,3.20143,3123.6,3123.4,3.753]
[1738116840276,3.20143,3123.6,3123.4,3.203]
[1738116840498,3.20153,3123.5,3123.4,3.203]
[1738116840664,3.20153,3123.5,3123.3,3.17712872]
[1738116841252,3.20163,3123.4,3123.3,3.17712872]
[1738116841579,3.20163,3123.4,3123.3,2.55351142]
[1738116841784,4.01713,3123.4,3123.3,2.55351142]
[1738116841949,4.01713,3123.4,3123.3,0.01751142]
[1738116842407,3.20194,3123.2,3123.0,0.63541495]
[1738116842579,3.20194,3123.1,3123.0,0.63541495]
[1738116843062,3.202,3123.1,3122.8,0.55]
[1738116843449,0.8155,3123.4,3122.8,0.9922]
[1738116843795,0.8155,3123.4,3122.7,0.668]
[1738116843796,3.20215,3122.9,3122.4,3.55247541]
[1738116843947,3.20215,3122.9,3122.8,0.55]
[1738116844702,0.04002689,3123.0,3122.5,3.204]
[1738116844855,3.20239,3122.7,3122.5,3.204]
[1738116845199,3.20239,3122.7,3122.6,0.55]
[1738116845349,3.20239,3122.7,3122.5,3.204]
[1738116845550,3.20245,3122.6,3122.5,3.204]
[1738116846197,3.20223,3122.9,3122.5,4.73070496]
[1738116846491,3.20226,3122.8,3122.5,4.73070496]
[1738116847402,0.7985,3123.7,3122.5,4.73070496]
[1738116847699,3.20245,3122.6,3122.5,1.20630496]
[1738116848000,3.20266,3122.4,3122.3,6.204]
[1738116848797,3.20266,3122.4,3122.3,3.204]
[1738116849293,3.20245,3122.6,3122.3,3.754]
[1738116849451,3.20266,3122.4,3122.3,3.754]
[1738116849651,3.20266,3122.4,3122.3,3.204]
[1738116850955,3.20266,3122.4,3122.3,4.13794684]
[1738116851401,3.20245,3122.6,3122.3,4.13794684]
[1738116852600,6.40499,3122.6,3122.3,4.13794684]
[1738116852755,3.20257,3122.5,3122.3,4.13794684]
[1738116853160,0.63790373,3123.8,3122.3,4.13794684]
[1738116853161,3.20226,3122.8,3122.4,1.218]
[1738116853359,3.20226,3122.8,3122.6,0.55]
[1738116854417,3.20187,3123.2,3122.6,6.75245]
[1738116854561,3.20168,3123.4,3122.8,3.75221]
[1738116854760,3.20168,3123.4,3122.9,3.93682496]
[1738116854968,3.20187,3123.2,3123.0,0.55]
[1738116856715,3.20187,3123.2,3123.1,0.01880143]
[1738116857372,3.20167,3123.4,3123.1,0.01880143]
[1738116857916,3.20149,3123.6,3123.3,0.55]
[1738116858118,3.20139,3123.7,3123.3,3.753]
[1738116858414,3.20154,3123.5,3123.4,0.01886294]
[1738116861186,3.20154,3123.5,3123.4,0.02839232]
[1738116861749,3.20154,3123.5,3123.3,4.19698014]
[1738116862415,3.20163,3123.4,3123.3,4.19698014]
[1738116862874,3.20194,3123.1,3123.0,0.6504362]
[1738116863078,3.20194,3123.1,3123.0,1.2004362]
[1738116870656,3.20158,3123.5,3123.1,0.55]
[1738116870837,3.20158,3123.5,3123.3,0.55]
[1738116871651,3.20163,3123.4,3123.3,0.55]
[1738116872646,3.98115,3124.0,3123.3,0.55]
[1738116872647,0.821,3124.7,3123.3,0.55]
[1738116872864,3.2012,3123.9,3123.4,0.0235454]
[1738116873062,3.2012,3123.9,3123.6,1.218]
[1738116873360,3.20095,3124.1,3123.6,4.12601788]
[1738116873506,3.20075,3124.3,3123.8,0.55]
[1738116873705,3.20075,3124.3,3124.1,0.55]
[1738116874151,3.20081,3124.2,3124.1,0.55]
[1738116874354,3.20081,3124.2,3123.9,3.578132]
[1738116874355,3.20102,3124.0,3123.8,0.668]
[1738116874560,3.20005,3125.0,3123.6,6.53656642]
[1738116874561,3.20133,3123.7,3123.6,6.53656642]
[1738116874759,3.20092,3124.1,3123.7,0.55]
[1738116875059,3.20089,3124.2,3123.9,0.55]
[1738116875264,3.20089,3124.2,3124.1,0.55]
[1738116880615,0.8235,3124.6,3123.8,1.02895664]
[1738116880616,3.20112,3123.9,3123.8,1.02895664]
[1738116881470,3.20122,3123.8,3123.7,0.55]
[1738116883967,3.20133,3123.7,3123.0,0.668]
[1738116884169,3.2017,3123.4,3123.0,0.668]
[1738116884323,3.2017,3123.4,3123.1,3.57355519]
[1738116884524,3.2017,3123.4,3123.3,0.55]
[1738116886253,3.20128,3123.8,3123.3,3.55]
[1738116886428,3.20133,3123.7,3123.5,0.55]
[1738116886630,3.20128,3123.8,3123.5,0.55]
[1738116887566,3.20128,3123.8,3123.5,0.57354568]
[1738116887740,3.20128,3123.8,3123.7,0.55]
[1738116888065,3.20106,3124.0,3123.7,0.55]
[1738116888567,6.40218,3124.0,3123.7,0.55]
[1738116888772,3.20122,3123.8,3123.7,0.55]
[1738116891372,1.86639015,3123.5,3123.2,0.74455552]
[1738116891577,0.7748,3123.8,3123.2,3.55]
[1738116891779,3.2016,3123.5,3123.2,0.55]
[1738116891928,3.20166,3123.4,3123.2,3.754]
[1738116892377,3.20166,3123.4,3123.2,4.4107166]
[1738116892576,3.20166,3123.4,3123.3,1.29107166]
[1738116894278,3.20166,3123.4,3123.3,4.29107166]
[1738116894576,3.20166,3123.4,3123.3,3.55]
[1738116894779,3.20166,3123.4,3123.3,0.55]
[1738116896879,3.20131,3123.8,3123.4,1.218]
[1738116897028,3.20135,3123.7,3123.4,1.218]
[1738116897227,3.20135,3123.7,3123.5,0.4218]
[1738116898085,3.20143,3123.6,3123.5,0.4218]
[1738116898246,3.20143,3123.6,3123.4,0.55]
[1738116900745,3.20143,3123.6,3123.4,1.218]
[1738116901278,3.20143,3123.6,3123.4,0.55]
[1738116902340,3.20098,3124.1,3123.4,3.75154]
[1738116902671,3.20109,3124.0,3123.5,0.02354917]
[1738116902875,3.20122,3123.8,3123.7,0.55]
[1738116903038,3.20133,3123.7,3123.6,3.203]
[1738116903653,4.02894762,3123.7,3123.6,3.203]
[1738116903892,3.98893,3123.7,3123.6,3.203]
[1738116905111,3.20174,3123.3,3123.0,3.204]
[1738116905273,0.82761823,3123.7,3122.4,3.08447541]
[1738116905274,3.20216,3122.9,3122.4,3.08447541]
[1738116905594,3.20216,3122.9,3122.5,3.204]
[1738116906089,3.98957,3123.1,3122.6,3.0]
[1738116906295,3.20214,3123.0,3122.7,1.17275702]
[1738116907403,3.98957,3123.1,3122.7,1.17275702]
[1738116908259,3.20211,3123.0,3122.7,1.17275702]
[1738116909596,3.20211,3123.0,3122.8,0.65436972]
[1738116909976,3.20242,3122.7,3122.5,3.204]
[1738116910571,3.20242,3122.7,3122.6,0.55]
[1738116911300,3.20219,3122.9,3122.6,0.9454]
[1738116911998,3.20175,3123.3,3122.6,3.96897281]
[1738116912190,3.20185,3123.2,3122.8,3.55]
[1738116912692,3.20175,3123.3,3122.8,3.55]
[1738116913087,3.20188,3123.2,3122.8,3.55]
[1738116913289,0.8199,3123.4,3122.8,3.0]
[1738116913290,3.20215,3122.9,3122.8,3.0]
[1738116913599,3.20189,3123.2,3122.9,0.55]
[1738116913791,3.202,3123.1,3122.9,0.55]
[1738116913978,3.20189,3123.2,3122.9,0.55]
[1738116913979,3.20204,3123.0,3122.9,0.55]
[1738116914883,3.99655,3122.8,3122.7,3.204]
[1738116915092,3.99655,3122.8,3122.5,0.64065423]
[1738116915093,3.20245,3122.6,3122.5,0.64065423]
[1738116915403,3.20256,3122.5,3122.4,0.2]
[1738116915570,3.20256,3122.5,3122.4,0.75]
[1738116916106,3.20256,3122.5,3122.4,0.2]
[1738116916491,6.20256,3122.5,3122.4,0.2]
[1738116917604,7.957361,3122.5,3122.4,0.2]
[1738116920535,7.01686,3122.5,3122.4,0.2]
[1738116927309,7.01686,3122.5,3122.1,0.056162]
[1738116927310,3.20286,3122.2,3122.1,2e-06]
[1738116927553,7.04740729,3122.2,3122.1,2e-06]
[1738116927765,7.00736,3122.2,3122.1,2e-06]
[1738116927924,8.028371,3122.2,3122.1,2e-06]
[1738116928332,7.00736,3122.2,3122.1,2e-06]
[1738116930476,7.55736,3122.2,3122.1,2e-06]
[1738116931132,7.00736,3122.2,3122.1,2e-06]
[1738116931537,7.55736,3122.2,3122.1,2e-06]
[1738116932077,3.20502,3120.1,3120.0,0.02360455]
[1738116932374,3.20533,3119.8,3119.7,1.15563102]
[1738116932522,3.20533,3119.8,3119.4,3.876]
[1738116932718,3.20522,3120.0,3119.4,3.876]
[1738116932953,3.0,3119.9,3119.5,0.71887442]
[1738116933272,3.20545,3119.7,3119.5,0.71887442]
[1738116933474,3.2054,3119.8,3119.5,0.71887442]
[1738116933636,3.2054,3119.8,3119.5,1.36924964]
[1738116933840,3.2054,3119.8,3119.6,0.52442496]
[1738116934875,3.20543,3119.7,3119.6,0.52442496]
[1738116935356,3.20553,3119.6,3119.4,3.875]
[1738116935558,3.20536,3119.8,3119.4,3.875]
[1738116935723,6.20524,3119.9,3119.4,3.875]
[1738116935926,3.0,3119.9,3119.5,0.99652354]
[1738116936125,3.20533,3119.8,3119.5,0.99652354]
[1738116936872,3.20585,3119.3,3118.9,0.1634428]
[1738116937067,9.6123,3121.0,3119.2,6.09040541]
[1738116937230,3.20553,3119.7,3119.2,2.91652974]
[1738116937572,3.20553,3119.7,3119.3,3.207]
[1738116939162,3.20539,3119.8,3119.3,3.207]
[1738116939365,3.20553,3119.6,3119.4,0.61235297]
[1738116939526,3.20564,3119.5,3119.4,0.61235297]
[1738116940027,3.20564,3119.5,3119.3,3.207]
[1738116940028,3.20574,3119.4,3119.3,3.207]
[1738116940237,3.20564,3119.5,3119.0,0.63148371]
[1738116940537,3.20564,3119.5,3118.9,3.3714428]
[1738116940538,3.20593,3119.3,3118.9,3.3714428]
[1738116940740,3.20566,3119.5,3119.1,0.668]
[1738116940741,3.20574,3119.4,3119.1,0.668]
[1738116941852,3.2056,3119.6,3119.1,0.70005761]
[1738116942168,3.2056,3119.6,3119.2,0.39061976]
[1738116942334,3.2056,3119.6,3119.3,3.208]
[1738116943586,3.20546,3119.7,3119.3,3.208]
[1738116943872,3.20505,3120.1,3119.4,0.668]
[1738116944034,0.7937,3120.6,3119.3,6.44588546]
[1738116944035,3.20498,3120.2,3119.6,0.668]
[1738116944230,3.20498,3120.2,3119.8,0.668]
[1738116944881,3.20498,3120.2,3119.9,0.0320501]
[1738116945087,3.20498,3120.2,3119.8,0.668]
[1738116945250,3.20498,3120.2,3119.9,0.03204867]
[1738116945949,3.20498,3120.2,3119.8,1.32546497]
[1738116946274,3.20498,3120.2,3119.9,0.52757747]
[1738116947671,3.20504,3120.1,3119.9,0.52757747]
[1738116947982,3.20512,3120.0,3119.9,0.52757747]
[1738116948555,3.20512,3120.0,3119.8,1.32546497]
[1738116949370,3.20514,3120.0,3119.8,1.32546497]
[1738116950088,3.20483,3120.3,3120.0,0.668]
[1738116950286,3.20483,3120.3,3120.0,0.70004791]
[1738116950484,3.20483,3120.3,3120.1,0.39070479]
[1738116951196,3.20492,3120.2,3120.1,0.39070479]
[1738116955996,3.20502,3120.1,3120.0,0.668]
[1738116956501,3.20492,3120.2,3120.0,0.668]
[1738116956502,3.20493,3120.2,3120.0,0.668]
[1738116957062,3.20476,3120.4,3120.0,0.668]
[1738116957294,3.20483,3120.3,3120.0,0.668]
[1738116957514,3.20494,3120.2,3120.0,0.668]
[1738116957668,3.20494,3120.2,3120.1,0.39070502]
[1738116958361,1.20494,3120.2,3120.1,0.39070502]
[1738116958589,3.20476,3120.4,3120.1,0.39070502]
[1738116958776,0.8096,3121.2,3120.2,0.0320476]
[1738116958993,3.2044,3120.8,3120.3,0.668]
[1738116959168,3.2044,3120.8,3120.4,3.62953393]
[1738116960071,3.2044,3120.8,3120.4,3.59749076]
[1738116960399,3.20412,3121.0,3120.5,0.03204326]
[1738116960602,3.98747,3121.5,3120.6,0.668]
[1738116960804,3.20375,3121.4,3120.8,0.668]
[1738116960969,3.20381,3121.3,3120.9,3.62847517]
[1738116961169,3.20381,3121.3,3120.9,3.59643785]
[1738116961170,3.20399,3121.2,3120.9,3.59643785]
[1738116962686,3.204,3121.1,3120.9,3.59643785]
[1738116962901,3.2041,3121.0,3120.9,3.206]
[1738116963228,3.2043,3120.8,3120.5,4.155]
[1738116963438,3.20443,3120.7,3120.5,4.155]
[1738116963996,3.20427,3120.9,3120.5,4.8072966]
[1738116964192,3.20427,3120.9,3120.6,0.51977874]
[1738116964600,0.7765,3121.5,3120.6,0.51977874]
[1738116964798,6.20385,3121.3,3120.7,0.668]
[1738116965103,6.20385,3121.3,3120.8,0.03203919]
[1738116965285,3.20364,3121.5,3120.8,3.23631919]
[1738116965484,3.20364,3121.5,3120.9,0.668]
[1738116965801,3.2037,3121.4,3121.0,0.39043192]
[1738116966421,3.20379,3121.3,3121.0,0.39043192]
[1738116967126,6.40768,3121.3,3121.0,0.39043192]
[1738116967332,3.2041,3121.0,3120.7,3.874]
[1738116967622,3.2041,3121.0,3120.7,0.668]
[1738116968688,3.2044,3120.7,3120.6,3.206]
[1738116968892,3.2044,3120.7,3120.5,0.6522966]
[1738116969126,3.2044,3120.7,3120.5,1.11995583]
[1738116969841,3.20451,3120.6,3120.5,0.6522966]
[1738116970392,3.22092696,3120.6,3120.5,0.6522966]
[1738116970722,3.20486,3120.3,3119.9,3.875]
[1738116970934,3.20466,3120.5,3120.1,0.63826444]
[1738116971103,3.20446,3120.7,3120.2,0.03204586]
[1738116971846,3.20452,3120.6,3120.1,3.84322444]
[1738116972631,3.20452,3120.6,3120.1,0.63826444]
[1738116973019,3.20464,3120.5,3120.1,0.63826444]
[1738116973329,3.20472,3120.4,3120.1,0.63826444]
[1738116974745,6.40952,3120.4,3120.1,0.63826444]
[1738116974946,3.20486,3120.3,3120.1,0.63826444]
[1738116975337,3.20492,3120.2,3120.1,0.63826444]
[1738116976859,3.20486,3120.3,3120.1,0.63826444]
[1738116977021,3.20492,3120.2,3120.1,0.63826444]
[1738116977221,3.20486,3120.3,3119.9,3.207]
[1738116977641,0.8014,3120.5,3119.9,3.207]
[1738116977857,3.20537,3119.8,3119.0,3.20608]
[1738116978057,3.20546,3119.7,3119.2,0.668]
[1738116978219,3.20537,3119.8,3119.2,0.668]
[1738116978425,3.20537,3119.8,3119.2,3.87393]
[1738116978633,4.00108,3120.3,3119.6,3.20553]
[1738116978833,3.20488,3120.3,3119.7,3.55960414]
[1738116979024,3.20494,3120.2,3119.8,0.668]
[1738116980546,3.20466,3120.5,3119.9,0.03205075]
[1738116980859,3.20466,3120.5,3120.0,6.41212]
[1738116981164,3.20472,3120.4,3120.0,3.207]
[1738116981456,3.20472,3120.4,3120.1,0.3207]
[1738116983124,3.20457,3120.6,3120.1,0.3207]
[1738116983435,3.20477,3120.4,3120.1,0.3207]
[1738116983646,3.20463,3120.5,3120.1,0.3207]
[1738116984923,3.20471,3120.4,3120.1,0.3207]
[1738116985235,3.20471,3120.4,3120.2,0.35597479]
[1738116985734,3.20454,3120.6,3120.2,0.35597479]
[1738116986131,3.20462,3120.5,3120.2,0.35597479]
[1738116988274,3.20441,3120.7,3120.2,1.05602231]
[1738116988866,3.20451,3120.6,3120.2,1.02397479]
[1738116989169,4.00267,3120.8,3120.2,4.22881479]
[1738116989343,4.00267,3120.8,3120.3,0.45815605]
[1738116989543,4.00267,3120.8,3120.4,3.206]
[1738116989843,3.20391,3121.2,3120.4,6.44273421]
[1738116990048,3.20373,3121.4,3120.6,3.20444]
[1738116990244,0.7846,3121.5,3120.8,3.87223]
[1738116990430,3.20376,3121.4,3120.8,3.90426815]
[1738116990859,3.20382,3121.3,3120.8,3.87223]
[1738116991068,3.20372,3121.4,3120.8,3.90426815]
[1738116991377,3.2039,3121.2,3120.8,0.668]
[1738116991548,3.2039,3121.2,3120.9,0.3874]
[1738116991937,3.20372,3121.4,3120.9,0.3874]
[1738116992137,3.99634,3121.8,3121.1,3.20392]
[1738116992338,3.20351,3121.6,3121.0,3.20399]
[1738116992534,3.20351,3121.6,3121.1,3.206]
[1738116992782,3.20351,3121.6,3121.2,0.640999]
[1738116992938,6.40708,3121.6,3121.2,0.640999]
[1738116993138,3.20351,3121.6,3121.2,0.640999]
[1738116993548,6.40709,3121.6,3121.2,0.640999]